bitfinex-derivatives/quotes_ETHF0:USTF0_20250704
["timestamp","ask_amount","ask_price","bid_price","bid_amount"]
[1751636113377,37.366,2536.4,2536.3,0.78828]
[1751636113590,38.15427,2536.4,2536.1,0.78833]
[1751636113779,1.2889,2536.3,2536.2,0.78831]
[1751636114777,1.2889,2536.3,2535.8,5.17883]
[1751636114778,3.2078,2536.8,2536.7,0.78815]
[1751636115777,11.534,2537.0,2536.9,0.78809]
[1751636115977,1.2889,2537.3,2537.2,0.788]
[1751636116183,37.348,2537.3,2536.8,1.97031]
[1751636116379,38.6756,2537.3,2537.2,0.788]
[1751636118683,0.78808,2537.0,2536.8,0.78811]
[1751636118888,38.6576,2536.9,2536.4,3.2078]
[1751636119076,0.78821,2536.6,2536.5,0.7882]
[1751636119577,0.78817,2536.7,2536.4,3.2078]
[1751636119778,0.78818,2536.6,2536.5,0.78821]
[1751636120382,2.11068,2536.7,2536.6,0.78818]
[1751636120578,2.11068,2536.7,2536.4,3.2078]
[1751636120784,0.78821,2536.5,2536.4,3.99603]
[1751636120985,0.78821,2536.5,2536.4,0.78823]
[1751636121183,1.3225,2536.7,2536.3,0.78825]
[1751636121479,3.2078,2536.8,2536.7,0.78815]
[1751636121686,11.568,2537.0,2536.9,0.78809]
[1751636122185,48.877,2537.0,2536.9,0.78809]
[1751636122382,49.66506,2537.0,2536.9,0.78809]
[1751636122886,48.88,2537.0,2536.9,0.78809]
[1751636123785,0.78805,2537.1,2537.0,0.78803]
[1751636123786,0.78803,2537.1,2537.0,0.78803]
[1751636123985,38.07704,2537.1,2537.0,0.78803]
[1751636124187,38.07704,2537.1,2536.9,0.78807]
[1751636124188,0.78808,2537.0,2536.9,0.78807]
[1751636124997,0.78811,2536.9,2536.8,0.78809]
[1751636125686,0.78808,2537.0,2536.9,0.78806]
[1751636126186,37.289,2537.1,2536.6,3.2078]
[1751636126384,37.289,2537.1,2536.4,1.97062]
[1751636126385,39.25909,2537.1,2536.4,1.97062]
[1751636126590,0.78812,2536.9,2536.8,0.7881]
[1751636127193,3.2078,2537.2,2537.1,0.78803]
[1751636127393,41.2518,2537.2,2537.1,0.78803]
[1751636128097,0.78806,2537.1,2537.0,0.78804]
[1751636128591,41.25181,2537.2,2537.1,0.78803]
[1751636129693,0.78807,2537.1,2537.0,0.78804]
[1751636130793,41.25181,2537.2,2537.1,0.78803]
[1751636130992,56.731,2537.4,2537.1,0.78803]
[1751636131191,0.788,2537.2,2537.1,0.78803]
[1751636131985,5.17783,2537.2,2536.6,3.2078]
[1751636132193,0.78815,2536.7,2536.6,3.99596]
[1751636132489,0.78815,2536.7,2536.6,3.2078]
[1751636132696,0.78815,2536.7,2536.6,3.99598]
[1751636132887,0.78827,2536.4,2536.3,0.78825]
[1751636133289,0.78837,2536.0,2535.5,3.2078]
[1751636133490,0.78844,2535.8,2535.7,0.78844]
[1751636133697,37.203,2536.0,2535.5,3.2078]
[1751636133996,1.97101,2535.9,2535.5,3.2078]
[1751636134193,0.78849,2535.6,2535.5,3.99632]
[1751636134490,1.3086,2535.9,2535.7,0.78843]
[1751636134684,0.78845,2535.8,2535.5,3.2078]
[1751636134889,0.78848,2535.7,2535.6,0.78846]
[1751636135395,0.78846,2535.8,2535.7,0.78844]
[1751636135594,44.0078,2536.3,2535.6,1.97124]
[1751636135798,1.97047,2536.6,2535.6,1.97124]
[1751636135799,12.35827,2536.4,2536.3,0.78828]
[1751636136095,48.779,2536.4,2535.7,1.97112]
[1751636136294,1.97078,2536.2,2535.6,3.2078]
[1751636136498,0.78846,2535.8,2535.7,0.78845]
[1751636136698,0.78846,2535.7,2535.6,3.2078]
[1751636136990,0.78845,2535.8,2535.6,3.99629]
[1751636137192,3.27346,2536.1,2535.6,3.99627]
[1751636137496,0.78846,2535.8,2535.7,0.78844]
[1751636137691,0.78842,2535.9,2535.8,0.78841]
[1751636138190,0.78846,2535.8,2535.7,0.78845]
[1751636138390,2.20846,2535.8,2535.7,0.78845]
[1751636138593,0.78846,2535.7,2535.6,3.99628]
[1751636138894,0.78857,2535.4,2535.3,3.2078]
[1751636139094,0.78857,2535.4,2535.3,3.99636]
[1751636139396,0.78857,2535.4,2535.3,3.2078]
[1751636139586,39.20032,2535.5,2534.9,3.2078]
[1751636139789,0.78868,2535.1,2535.0,0.78866]
[1751636139991,0.78868,2535.0,2534.9,3.99649]
[1751636140192,42.40753,2535.0,2534.5,3.2078]
[1751636140388,0.78881,2534.6,2534.5,3.2078]
[1751636140589,1.42,2534.9,2534.5,3.2078]
[1751636140792,0.78875,2534.8,2534.7,0.78876]
[1751636141190,2.20871,2534.9,2534.8,0.78874]
[1751636141390,0.78876,2534.8,2534.7,0.78875]
[1751636141591,1.3541,2534.8,2534.7,0.78875]
[1751636141792,3.8503,2535.3,2535.2,0.78862]
[1751636142097,3.2078,2535.3,2535.2,0.78862]
[1751636142692,1.3541,2535.5,2535.4,0.78856]
[1751636142889,3.2078,2535.8,2535.6,0.78848]
[1751636143094,0.78849,2535.6,2535.1,5.17941]
[1751636143401,48.894,2535.7,2535.6,0.78849]
[1751636143698,51.03656,2535.7,2535.6,0.78849]
[1751636143900,50.2481,2535.7,2535.6,0.78849]
[1751636144795,51.03656,2535.7,2535.6,0.78849]
[1751636145190,50.2481,2535.7,2535.6,0.78849]
[1751636145391,51.03656,2535.7,2535.6,0.78849]
[1751636147605,15.57126,2535.8,2535.7,0.78846]
[1751636147804,52.0798,2535.8,2535.3,2.68386]
[1751636148005,0.78848,2535.7,2535.6,0.78847]
[1751636148400,1.342,2535.7,2535.6,0.78847]
[1751636148605,3.2078,2536.1,2536.0,0.78837]
[1751636148904,3.2078,2536.1,2535.3,0.7124]
[1751636148905,0.78856,2535.4,2535.3,0.7124]
[1751636149101,39.22933,2535.5,2535.1,3.2078]
[1751636149307,0.78861,2535.3,2535.2,0.78859]
[1751636150205,37.257,2535.4,2535.3,0.78859]
[1751636150406,38.04556,2535.4,2535.3,0.78859]
[1751636150604,0.78862,2535.3,2535.2,0.78859]
[1751636151212,37.257,2535.4,2535.1,3.2078]
[1751636151213,38.02859,2535.4,2535.3,0.78856]
[1751636151712,37.24,2535.4,2535.3,0.78856]
[1751636151908,37.24,2535.4,2535.1,3.2078]
[1751636152112,0.78874,2534.8,2534.7,0.6854]
[1751636152709,0.78881,2534.6,2534.5,3.2078]
[1751636153611,0.78881,2534.6,2534.5,3.99664]
[1751636154012,0.78881,2534.6,2534.5,3.2078]
[1751636154809,2.16481,2534.6,2534.5,3.2078]
[1751636155006,0.78887,2534.4,2534.3,0.7114]
[1751636155206,0.7889,2534.3,2534.2,0.6712]
[1751636155603,0.78902,2533.9,2533.8,3.9103]
[1751636155809,0.78902,2533.9,2533.6,0.6546]
[1751636155810,0.78909,2533.7,2533.6,0.6546]
[1751636156206,0.78909,2533.7,2533.6,1.44372]
[1751636156405,0.78909,2533.7,2533.6,0.6546]
[1751636157007,0.78915,2533.5,2533.4,3.2078]
[1751636157205,0.78924,2533.2,2533.1,3.2078]
[1751636157612,0.78933,2532.9,2532.8,3.99714]
[1751636157814,0.78933,2532.9,2532.8,3.2078]
[1751636158309,0.78933,2533.0,2532.8,3.2078]
[1751636158507,2.12943,2532.9,2532.8,3.2078]
[1751636158910,1.3401,2532.9,2532.8,3.99717]
[1751636159111,0.78933,2533.0,2532.9,0.78933]
[1751636159307,0.78932,2533.0,2532.9,0.78932]
[1751636159818,1.4054,2533.2,2532.8,3.2078]
[1751636160010,48.799,2533.1,2532.8,3.2078]
[1751636160209,0.78931,2533.0,2532.9,0.78932]
[1751636160410,48.799,2533.1,2533.0,0.7893]
[1751636160613,48.799,2533.1,2532.8,3.2078]
[1751636160814,1.4054,2533.1,2533.0,0.7893]
[1751636161018,38.6424,2533.1,2533.0,0.7893]
[1751636161219,38.6424,2533.1,2532.8,3.2078]
[1751636161520,0.78933,2532.9,2532.8,3.2078]
[1751636161709,44.0078,2533.4,2533.0,0.7893]
[1751636161913,48.78,2533.3,2532.8,3.2078]
[1751636162214,37.239,2533.2,2533.1,0.78925]
[1751636162416,12.8881,2533.3,2533.2,0.78924]
[1751636162616,3.2078,2533.4,2533.3,0.78921]
[1751636162812,1.3381,2533.6,2533.5,0.78915]
[1751636163014,13.67722,2533.6,2533.5,0.78915]
[1751636163319,3.2078,2533.8,2533.2,5.18087]
[1751636163520,14.7578,2533.8,2533.7,0.78909]
[1751636164122,3.2078,2534.2,2533.5,3.2078]
[1751636164324,40.4398,2534.2,2534.1,0.78896]
[1751636164526,37.232,2534.2,2534.1,0.78896]
[1751636165424,16.0959,2534.5,2534.4,0.78887]
[1751636165826,54.10574,2534.5,2534.4,0.78887]
[1751636166025,53.3169,2534.5,2534.4,0.78887]
[1751636166223,53.3169,2534.5,2533.8,5.18044]
[1751636166423,0.78896,2534.1,2533.8,3.2078]
[1751636166621,37.254,2534.0,2533.9,0.78902]
[1751636167227,38.6431,2534.0,2533.9,0.78902]
[1751636167427,38.6431,2534.0,2533.8,3.2078]
[1751636167628,0.78907,2533.8,2533.5,3.2078]
[1751636167932,39.4321,2534.0,2533.9,0.78902]
[1751636168330,1.3891,2534.0,2533.9,0.78902]
[1751636168522,50.1871,2534.0,2533.9,0.78902]
[1751636168728,1.3891,2534.0,2533.9,0.78902]
[1751636168928,1.3046,2534.4,2534.1,0.78896]
[1751636169129,37.254,2534.4,2534.3,0.7889]
[1751636169926,3.2078,2534.5,2534.4,0.78887]
[1751636170932,0.78888,2534.4,2534.3,0.78887]
[1751636171132,0.78894,2534.2,2534.1,0.78893]
[1751636171326,1.3737,2534.4,2534.0,0.6577]
[1751636171525,0.78892,2534.3,2534.2,0.7889]
[1751636172528,0.78896,2534.1,2534.0,0.78898]
[1751636172728,0.78902,2533.9,2533.8,3.2078]
[1751636172929,0.78902,2533.9,2533.8,3.99685]
[1751636173130,0.78902,2533.9,2533.8,3.2078]
[1751636173432,0.78902,2533.9,2533.8,3.99685]
[1751636173829,2.16272,2534.0,2533.9,0.78902]
[1751636174134,0.78896,2534.1,2534.0,0.78899]
[1751636174332,38.01196,2534.1,2534.0,0.78899]
[1751636174727,38.01196,2534.1,2533.9,0.789]
[1751636174728,0.78901,2534.0,2533.9,0.789]
[1751636174924,0.78902,2533.9,2533.8,3.99684]
[1751636175335,38.5283,2534.1,2533.8,3.2078]
[1751636175535,39.31729,2534.1,2534.0,0.78899]
[1751636175834,38.00796,2534.1,2534.0,0.78899]
[1751636176431,37.219,2534.1,2534.0,0.78899]
[1751636177036,3.99667,2534.5,2534.4,0.78887]
[1751636177337,41.19767,2534.5,2534.4,0.78887]
[1751636178731,3.99667,2534.5,2534.4,0.78887]
[1751636179034,41.16267,2534.5,2534.4,0.78887]
[1751636179437,0.7889,2534.4,2534.3,0.78888]
[1751636179633,0.7889,2534.3,2534.2,1.45081]
[1751636179937,0.7889,2534.3,2534.2,0.6619]
[1751636180137,2.09858,2534.4,2534.3,0.7889]
[1751636180635,39.25158,2534.4,2534.3,0.7889]
[1751636181134,37.94188,2534.4,2534.3,0.7889]
[1751636182137,37.153,2534.4,2534.3,0.7889]
[1751636182534,37.94187,2534.4,2534.3,0.7889]
[1751636182834,37.153,2534.4,2534.3,0.7889]
[1751636183134,37.125,2534.5,2534.2,3.30929]
[1751636183335,14.84968,2534.8,2534.5,0.7888]
[1751636183336,0.78884,2534.6,2534.5,0.7888]
[1751636183538,37.90184,2534.6,2534.5,0.7888]
[1751636183838,0.78886,2534.5,2534.4,0.78884]
[1751636184239,1.3718,2534.8,2534.2,6.51709]
[1751636184240,37.89083,2534.6,2534.5,0.78879]
[1751636184936,37.89983,2534.6,2534.5,0.78879]
[1751636185241,0.7889,2534.4,2534.3,0.78886]
[1751636186230,2.1291,2534.4,2534.3,0.78886]
[1751636187241,0.7889,2534.3,2534.2,5.33371]
[1751636187943,0.78904,2534.0,2533.9,3.99679]
[1751636188236,38.3889,2534.2,2534.1,0.78896]
[1751636188543,37.076,2534.2,2534.1,0.78896]
[1751636188743,0.78899,2534.1,2534.0,0.78896]
[1751636189338,0.78899,2534.0,2533.9,3.2078]
[1751636189541,0.78899,2534.0,2533.9,3.9968]
[1751636189841,0.78899,2534.0,2533.9,3.2078]
[1751636190244,0.78899,2534.0,2533.6,1.3759]
[1751636190245,0.78908,2533.7,2533.6,3.8818]
[1751636190444,0.78908,2533.7,2533.6,3.2078]
[1751636190644,0.78908,2533.7,2533.6,3.99692]
[1751636190944,0.78908,2533.7,2533.6,3.2078]
[1751636191746,0.78908,2533.7,2533.6,3.99692]
[1751636192745,0.78902,2534.0,2533.9,0.78899]
[1751636192933,37.85402,2534.0,2533.9,0.78899]
[1751636193139,37.065,2534.0,2533.9,0.78899]
[1751636193539,37.039,2534.1,2534.0,0.78899]
[1751636193842,0.78892,2534.3,2534.2,0.78893]
[1751636194145,37.82892,2534.3,2534.2,0.78893]
[1751636194347,1.3581,2534.5,2534.0,1.44539]
[1751636194639,2.62754,2534.7,2534.0,1.44539]
[1751636194640,48.54,2534.7,2534.2,5.18013]
[1751636194839,48.54,2534.7,2534.5,0.7888]
[1751636194840,0.78883,2534.6,2534.5,0.7888]
[1751636195344,0.78887,2534.5,2534.4,0.78884]
[1751636196342,0.7889,2534.3,2534.2,0.78891]
[1751636196535,51.82005,2534.7,2534.1,0.78894]
[1751636196536,0.78894,2534.2,2534.1,0.78894]
[1751636196740,0.78896,2534.1,2534.0,1.44537]
[1751636197035,37.02,2534.3,2534.0,0.6564]
[1751636197236,38.3331,2534.4,2534.3,0.7889]
[1751636197442,0.78883,2534.6,2534.5,0.78884]
[1751636197645,37.81383,2534.6,2534.5,0.78884]
[1751636198546,0.78886,2534.5,2534.3,0.78887]
[1751636198746,0.78887,2534.4,2534.3,0.78887]
[1751636198945,1.97212,2534.5,2534.0,0.6564]
[1751636199145,0.78896,2534.1,2534.0,1.44537]
[1751636199646,0.78899,2534.0,2533.9,3.2078]
[1751636201244,0.78912,2533.7,2533.6,3.2078]
[1751636204351,5.08972579,2535.1,2533.7,1.9727]
[1751636204549,1.88337689,2534.7,2534.6,3.2078]
[1751636204746,0.78877,2534.7,2534.6,3.2078]
[1751636205154,0.78877,2534.7,2534.6,3.9966]
[1751636205447,3.2078,2535.7,2534.7,3.94387]
[1751636205649,3.2078,2535.7,2535.3,3.2078]
[1751636205650,6.51179,2535.7,2535.3,3.2078]
[1751636205847,4.5406,2535.7,2535.3,3.2078]
[1751636206046,0.78853,2535.5,2535.4,0.78854]
[1751636206353,0.78856,2535.4,2535.3,3.2078]
[1751636206548,0.78863,2535.2,2535.1,0.78865]
[1751636206855,49.68401526,2535.2,2534.4,1.97214]
[1751636207049,0.78873,2534.9,2534.8,0.78873]
[1751636207653,2.08123,2534.9,2534.8,0.78873]
[1751636207954,0.78877,2534.7,2534.6,3.99659]
[1751636208158,0.78876,2534.8,2534.7,0.78877]
[1751636208846,0.78874,2534.9,2534.7,0.78875]
[1751636209051,2.08122,2534.9,2534.7,0.78875]
[1751636209356,0.78874,2534.8,2534.7,0.78877]
[1751636209556,1.2925,2534.8,2534.7,0.78877]
[1751636210650,2.08124,2534.8,2534.7,0.78877]
[1751636210855,1.2925,2534.8,2534.7,0.78877]
[1751636213750,0.78871,2534.9,2534.8,0.78874]
[1751636213955,0.78851,2535.6,2534.9,1.97178]
[1751636214156,3.2078,2535.7,2535.5,0.7885]
[1751636214457,3.2078,2535.7,2535.6,0.78849]
[1751636214655,3.99626,2535.7,2535.6,0.78849]
[1751636214864,3.2078,2535.7,2535.6,0.78849]
[1751636215462,3.99626,2535.7,2535.6,0.78849]
[1751636215870,3.2078,2535.7,2535.6,0.78849]
[1751636216370,3.99626,2535.7,2535.6,0.78849]
[1751636216560,3.2078,2535.7,2535.6,0.78849]
[1751636217167,3.2078,2535.7,2535.2,2.63224]
[1751636217371,0.78849,2535.6,2535.5,0.78851]
[1751636217876,3.2078,2535.7,2535.2,0.6607]
[1751636218274,0.78854,2535.5,2535.4,0.78853]
[1751636218469,11.494,2535.8,2535.7,0.78846]
[1751636218874,11.494,2535.8,2535.6,0.78848]
[1751636218875,12.28243,2535.8,2535.6,0.78848]
[1751636219580,0.78851,2535.6,2535.5,0.78852]
[1751636220076,0.78855,2535.5,2535.4,0.78853]
[1751636220483,0.78856,2535.4,2535.3,0.78859]
[1751636220970,0.78859,2535.3,2535.2,4.6571]
[1751636221571,0.78857,2535.4,2535.3,0.78855]
[1751636221972,0.78859,2535.3,2535.2,3.8685]
[1751636222172,42.24198,2535.7,2535.1,0.78863]
[1751636222173,0.78862,2535.2,2535.1,0.78863]
[1751636223178,0.78877,2534.7,2534.6,0.6561]
[1751636223372,0.7888,2534.6,2534.5,3.2078]
[1751636223776,0.7888,2534.7,2534.5,3.2078]
[1751636223977,0.7888,2534.7,2534.6,0.78879]
[1751636224179,0.7888,2534.6,2534.5,3.99662]
[1751636225078,4.6258,2535.1,2534.5,3.2078]
[1751636225272,0.7887,2535.0,2534.9,0.78868]
[1751636225572,0.7885,2535.6,2535.5,0.78852]
[1751636225776,0.78847,2535.7,2535.6,0.78849]
[1751636226074,3.2078,2535.9,2535.3,5.17921]
[1751636226278,3.2078,2535.9,2535.4,2.0507]
[1751636226477,3.99624,2535.9,2535.8,0.78843]
[1751636226672,0.78846,2535.8,2535.7,0.78845]
[1751636226875,0.78848,2535.7,2535.6,0.78847]
[1751636227377,0.78856,2535.4,2535.3,3.99638]
[1751636227580,0.78855,2535.5,2535.4,0.78855]
[1751636228081,1.9711,2535.8,2535.4,0.78855]
[1751636228378,0.78855,2535.5,2535.4,0.78855]
[1751636228575,0.78852,2535.6,2535.5,0.78851]
[1751636229183,0.78855,2535.5,2535.4,0.78853]
[1751636229382,0.78858,2535.4,2535.3,0.78856]
[1751636230076,0.78859,2535.3,2535.2,3.9964]
[1751636230280,0.78858,2535.4,2535.3,0.78857]
[1751636230677,3.2078,2535.9,2535.3,1.97147]
[1751636230978,0.78849,2535.6,2535.5,3.9963]
[1751636231178,0.78848,2535.7,2535.6,0.78847]
[1751636231375,0.78848,2535.7,2535.6,1.43637]
[1751636231577,0.78845,2535.8,2535.7,0.78843]
[1751636231776,0.78843,2535.8,2535.7,0.78843]
[1751636232679,0.78842,2535.9,2535.8,0.7884]
[1751636232980,0.78837,2536.1,2536.0,0.78836]
[1751636233177,0.78837,2536.0,2535.9,0.78838]
[1751636233484,1.389,2536.4,2535.8,3.894]
[1751636233673,0.78833,2536.2,2536.1,0.78833]
[1751636236381,3.2078,2536.6,2535.9,1.97099]
[1751636236578,0.78827,2536.4,2536.3,0.78825]
[1751636236777,0.7883,2536.3,2536.2,0.78828]
[1751636238186,0.78827,2536.4,2536.3,0.78825]
[1751636238879,2.66307,2536.9,2536.3,3.2078]
[1751636238880,0.6928,2536.9,2536.3,3.2078]
[1751636239079,0.78813,2536.8,2536.7,0.78812]
[1751636239285,59.4736,2537.1,2536.5,1.44139]
[1751636239286,0.78818,2536.6,2536.5,1.44139]
[1751636239588,0.78817,2536.7,2536.6,0.78815]
[1751636241483,0.78818,2536.6,2536.5,1.44138]
[1751636241682,1.97042,2536.7,2536.3,3.99606]
[1751636241886,0.78824,2536.4,2536.3,3.2078]
[1751636242185,0.78834,2536.1,2536.0,3.9047]
[1751636242685,0.78834,2536.1,2536.0,4.69307]
[1751636243075,0.78834,2536.1,2536.0,3.9047]
[1751636243282,0.78844,2535.9,2535.8,0.7884]
[1751636243483,0.78843,2535.8,2535.7,3.99624]
[1751636244384,1.97093,2536.0,2535.7,3.2078]
[1751636244685,0.78825,2536.5,2536.4,0.78823]
[1751636248393,5.359,2536.6,2536.5,0.78821]
[1751636249087,3.2078,2536.6,2536.5,0.78821]
[1751636249578,12.25715,2536.8,2536.7,0.78815]
[1751636250283,0.78819,2536.7,2536.6,0.78816]
[1751636250987,11.469,2536.8,2536.5,0.78818]
[1751636250988,0.78821,2536.6,2536.5,0.78818]
[1751636251785,0.78821,2536.5,2536.4,3.2078]
[1751636251986,0.78834,2536.1,2536.0,0.6457]
[1751636252384,0.7884,2535.9,2535.8,3.2078]
[1751636252586,0.78846,2535.8,2535.7,0.78846]
[1751636252892,0.78846,2535.7,2535.6,0.6668]
[1751636253682,0.78846,2535.7,2535.6,1.45528]
[1751636253989,1.3001,2536.0,2535.6,0.6668]
[1751636254292,2.08849,2536.0,2535.9,0.7884]
[1751636254487,0.78839,2536.0,2535.9,0.7884]
[1751636255588,3.2078,2536.1,2535.6,2.63802]
[1751636255589,0.78842,2535.9,2535.8,0.78842]
[1751636255790,2.17192,2535.9,2535.8,0.78842]
[1751636255980,0.78845,2535.8,2535.7,0.78844]
[1751636256783,1.3835,2535.9,2535.8,0.78843]
[1751636257185,3.2078,2536.1,2536.0,0.78837]
[1751636257386,0.7884,2536.0,2535.9,0.78839]
[1751636257986,4.5247,2536.1,2535.6,0.6668]
[1751636258193,0.78845,2535.8,2535.7,0.78843]
[1751636259388,0.78849,2535.6,2535.5,3.8535]
[1751636259586,0.78849,2535.6,2535.5,3.2078]
[1751636260586,0.78865,2535.1,2535.0,0.643]
[1751636260786,5.17925,2535.4,2535.0,0.78867]
[1751636260992,1.4143,2535.3,2534.7,5.82272]
[1751636261289,2.20291,2535.3,2535.2,0.78862]
[1751636261591,0.78865,2535.2,2535.1,0.78864]
[1751636261793,0.78865,2535.1,2535.0,3.99646]
[1751636264486,1.4143,2535.3,2535.1,0.78864]
[1751636264487,0.78864,2535.2,2535.1,0.78864]
[1751636265293,0.78872,2534.9,2534.8,0.78871]
[1751636265484,0.7887,2535.0,2534.9,0.78869]
[1751636265998,0.78867,2535.1,2535.0,0.78866]
[1751636267290,0.78864,2535.2,2535.1,0.78862]
[1751636267592,0.78869,2535.1,2535.0,0.78866]
[1751636267996,2.20292,2535.3,2535.2,0.78862]
[1751636268195,0.78866,2535.2,2535.1,0.78862]
[1751636270090,0.78871,2535.0,2534.9,0.78867]
[1751636270292,1.97156,2535.2,2534.7,3.8508]
[1751636270491,0.78874,2534.8,2534.7,4.63955]
[1751636270888,0.78874,2534.8,2534.7,3.8508]
[1751636271399,0.78874,2534.8,2534.7,4.63957]
[1751636274199,0.78874,2534.8,2534.7,3.8508]
[1751636274594,0.78874,2534.8,2534.7,4.63957]
[1751636275395,2.15143,2534.9,2534.8,0.78874]
[1751636275594,0.78869,2535.1,2535.0,0.78864]
[1751636276697,0.78872,2535.0,2534.9,0.78869]
[1751636276895,1.97168,2535.1,2534.7,3.8508]
[1751636277100,0.78874,2534.8,2534.7,1.43175]
[1751636278606,0.78877,2534.7,2534.6,0.6746]
[1751636278903,0.7888,2534.6,2534.5,0.78883]
[1751636279106,3.33413,2534.9,2534.5,0.78883]
[1751636279404,0.7888,2534.7,2534.6,0.78877]
[1751636279598,0.78876,2534.8,2534.7,0.78875]
[1751636280702,0.78883,2534.6,2534.5,0.7888]
[1751636281102,0.78884,2534.5,2534.4,3.99662]
[1751636281301,0.78884,2534.5,2534.4,3.99667]
[1751636281507,0.78887,2534.4,2534.3,1.49637]
[1751636281705,2.15691,2534.7,2534.6,0.7888]
[1751636281898,60.0138,2535.1,2535.0,0.78868]
[1751636282099,60.6908,2535.9,2535.1,1.97163]
[1751636282300,2.45281137,2535.8,2535.3,3.2078]
[1751636282599,0.78851,2535.6,2535.5,0.78852]
[1751636282798,0.78851,2535.6,2535.2,0.6787]
[1751636282799,3.2078,2535.6,2535.2,0.6787]
[1751636282995,0.78862,2535.3,2535.2,0.78861]
[1751636283198,0.78858,2535.4,2535.3,0.78857]
[1751636283596,3.2078,2535.6,2535.4,0.78856]
[1751636283800,0.78852,2535.5,2535.4,0.78856]
[1751636284399,0.7886,2535.3,2535.2,0.78859]
[1751636284794,0.78858,2535.4,2535.3,0.78857]
[1751636286604,0.78857,2535.4,2535.3,0.78858]
[1751636287303,2.19055,2535.5,2535.4,0.78856]
[1751636287703,3.2078,2535.6,2535.5,0.78852]
[1751636287907,3.99629,2535.6,2535.5,0.78852]
[1751636288507,3.2078,2535.6,2535.5,0.78852]
[1751636289406,0.78847,2535.7,2535.6,0.78849]
[1751636290408,0.78845,2535.8,2535.7,0.78843]
[1751636290801,0.78849,2535.7,2535.6,0.78847]
[1751636292310,0.78846,2535.8,2535.7,0.78843]
[1751636292607,56.806,2535.9,2535.8,0.78843]
[1751636292608,57.59442,2535.9,2535.8,0.78843]
[1751636292808,0.78846,2535.8,2535.7,0.78844]
[1751636293204,0.78855,2535.5,2535.4,0.78851]
[1751636293809,1.2933,2535.7,2535.5,0.78849]
[1751636293810,0.78852,2535.6,2535.5,0.78849]
[1751636294202,56.806,2535.9,2535.7,0.78843]
[1751636294408,57.5944,2535.9,2535.8,0.78843]
[1751636294906,0.7884,2536.0,2535.9,0.78837]
[1751636295108,2.0817,2536.0,2535.9,0.78837]
[1751636295309,0.78843,2535.8,2535.7,0.6444]
[1751636295511,0.78842,2535.9,2535.8,0.7884]
[1751636295807,12.22436,2536.1,2536.0,0.78837]
[1751636298703,11.436,2536.1,2536.0,0.78837]
[1751636298908,12.22434,2536.1,2536.0,0.78837]
[1751636299310,11.436,2536.1,2536.0,0.78837]
[1751636299609,12.22434,2536.1,2536.0,0.78837]
[1751636299808,11.436,2536.1,2536.0,0.78837]
[1751636300014,12.22434,2536.1,2536.0,0.78837]
[1751636300415,0.78837,2536.0,2535.9,1.48208]
[1751636302119,0.78827,2536.4,2536.3,0.78825]
[1751636302913,0.78824,2536.5,2536.4,0.78822]
[1751636303314,36.848,2536.5,2536.4,0.78822]
[1751636303512,42.1505,2536.6,2536.5,0.78821]
[1751636304513,4.5143,2536.6,2536.5,0.78821]
[1751636304818,3.2078,2536.6,2536.5,0.78821]
[1751636305018,1.96999,2537.3,2536.8,0.78808]
[1751636305214,0.78811,2536.9,2536.8,3.99588]
[1751636305416,0.78811,2536.9,2536.8,3.2078]
[1751636305818,0.78811,2536.9,2536.8,3.99592]
[1751636306921,38.1307,2537.0,2536.9,0.78809]
[1751636307421,61.74939213,2537.6,2537.1,0.78801]
[1751636307422,59.46493,2537.6,2537.1,0.78801]
[1751636307622,59.46493,2537.6,2536.8,3.2078]
[1751636307623,0.78809,2536.9,2536.8,3.2078]
[1751636307922,37.63108,2537.0,2536.9,0.78809]
[1751636308315,0.78809,2536.9,2536.8,3.2078]
[1751636308515,2.16399,2536.9,2536.8,3.2078]
[1751636309321,2.87029,2536.9,2536.8,3.2078]
[1751636309917,0.78827,2536.4,2536.3,3.2078]
[1751636310120,1.97043,2536.7,2536.2,0.6838]
[1751636310121,0.78828,2536.3,2536.2,0.6838]
[1751636310324,0.78834,2536.1,2536.0,3.2078]
[1751636310818,1.3759,2536.2,2536.0,3.2078]
[1751636311022,2.1641,2536.6,2536.5,0.78821]
[1751636311423,0.78821,2536.6,2536.5,0.78819]
[1751636311921,0.78817,2536.7,2536.6,0.78815]
[1751636312319,0.78821,2536.6,2536.5,0.78819]
[1751636312520,0.78816,2536.8,2536.7,0.78813]
[1751636314122,0.78822,2536.6,2536.5,0.78819]
[1751636314627,0.78824,2536.4,2536.3,3.8642]
[1751636314820,0.78837,2536.1,2536.0,3.2078]
[1751636315021,0.78837,2536.0,2535.9,0.78838]
[1751636315624,1.97078,2536.2,2535.8,0.6559]
[1751636315925,0.78839,2536.0,2535.9,0.78838]
[1751636316726,0.7884,2535.9,2535.8,0.6559]
[1751636317027,2.1748,2535.9,2535.8,1.44433]
[1751636318732,0.78832,2536.2,2535.8,2.62697]
[1751636318927,3.2078,2536.3,2536.2,0.78831]
[1751636319123,1.3952,2536.5,2536.4,0.78824]
[1751636319323,1.3952,2536.5,2536.3,0.78825]
[1751636319530,0.78829,2536.4,2536.3,0.78825]
[1751636320133,0.78833,2536.2,2536.1,0.7883]
[1751636320333,0.78834,2536.1,2536.0,0.78834]